bitfinex-derivatives/quotes_ETHF0:USTF0_20250816
["timestamp","ask_amount","ask_price","bid_price","bid_amount"]
[1755303862599,1.7042,4453.2,4453.1,0.8334]
[1755303863104,3.2078,4454.2,4453.2,0.4035]
[1755303863405,0.1664,4453.5,4453.4,0.8334]
[1755303863598,1.7042,4453.5,4453.4,21.183]
[1755303864295,1.7042,4453.2,4453.1,3.2078]
[1755303864504,1.7042,4453.2,4453.1,24.3908]
[1755303864701,1.7042,4453.2,4453.1,21.183]
[1755303864702,0.6773,4453.2,4453.1,21.183]
[1755303865001,4.0300261,4453.2,4453.0,21.183]
[1755303865305,1.3292,4452.4,4452.3,3.2078]
[1755303865604,1.7042,4452.4,4452.3,24.3908]
[1755303865805,1.7042,4452.4,4452.1,0.10107476]
[1755303865806,4.7042,4452.4,4452.1,0.10107476]
[1755303866002,4.7042,4452.4,4451.6,24.3908]
[1755303866003,1.3116,4451.7,4451.6,24.3908]
[1755303866298,1.7042,4451.7,4451.6,24.3908]
[1755303866707,1.7042,4451.7,4451.6,21.183]
[1755303868094,0.4213,4451.2,4451.1,3.2078]
[1755303868404,1.7042,4451.2,4451.1,24.3928]
[1755303869306,1.7042,4451.2,4451.1,25.4859]
[1755303869501,0.2593,4451.2,4451.1,4.3009]
[1755303869701,0.2593,4451.2,4451.1,25.4849]
[1755303870310,0.3926,4451.6,4451.4,0.5897]
[1755303870508,0.4257,4451.5,4451.4,1.0931]
[1755303870702,1.3292,4451.5,4451.4,22.2771]
[1755303870907,0.2593,4451.5,4451.4,22.2771]
[1755303871110,0.3926,4451.9,4451.8,0.5897]
[1755303871111,1.0699,4451.9,4451.8,0.5897]
[1755303871312,0.4224,4451.9,4451.8,22.2791]
[1755303871705,0.6817,4451.9,4451.8,22.2791]
[1755303872410,3.2078,4452.1,4452.0,0.5897]
[1755303872705,3.2078,4453.0,4452.0,0.5897]
[1755303872911,0.4257,4452.2,4452.1,22.2791]
[1755303874003,0.6773,4451.8,4451.7,3.6377]
[1755303874206,1.7042,4451.8,4451.7,25.4869]
[1755303874704,1.7042,4451.8,4451.7,4.3009]
[1755303874908,1.7042,4451.8,4451.7,24.3938]
[1755303875515,1.7042,4451.8,4451.7,3.2078]
[1755303875715,1.7042,4451.8,4451.7,24.3938]
[1755303876511,1.7042,4451.8,4451.7,21.186]
[1755303878012,1.7042,4451.3,4450.7,3.2078]
[1755303878212,1.7042,4450.9,4450.8,21.185]
[1755303878614,1.7042,4450.9,4450.8,22.1183]
[1755303879413,1.7042,4450.9,4450.8,22.2781]
[1755303881118,1.3292,4450.9,4450.8,22.2781]
[1755303882114,0.375,4451.2,4450.8,22.2781]
[1755303882319,1.7042,4451.2,4451.1,0.5897]
[1755303882523,0.2593,4451.2,4451.1,22.2791]
[1755303882723,0.2593,4451.2,4451.1,22.3795]
[1755303882922,0.2593,4451.2,4451.1,1.1935]
[1755303883122,0.2593,4451.2,4451.1,22.3785]
[1755303883318,0.2593,4451.2,4451.1,1.1935]
[1755303883518,0.2593,4451.2,4451.1,22.3785]
[1755303883714,0.7676,4451.6,4451.1,22.2781]
[1755303883924,3.2078,4452.3,4451.3,3.7975]
[1755303883925,0.2593,4451.4,4451.3,3.7975]
[1755303884221,4.6527,4452.3,4452.2,0.5897]
[1755303884425,4.6527,4452.3,4452.2,1.0931]
[1755303884720,4.912,4452.3,4452.2,1.0931]
[1755303884919,1.3292,4452.3,4452.2,1.0931]
[1755303885320,0.375,4452.6,4452.5,0.5897]
[1755303885321,1.0699,4452.6,4452.5,0.5897]
[1755303885525,0.6773,4451.9,4451.8,0.4299]
[1755303885723,1.7042,4451.9,4451.8,22.1183]
[1755303886422,1.7042,4451.9,4451.8,25.3261]
[1755303886625,0.2593,4451.9,4451.8,25.5863]
[1755303887120,0.7676,4452.4,4451.8,25.5863]
[1755303887121,0.2593,4452.2,4451.8,26.03522]
[1755303887328,0.2593,4452.1,4452.0,0.5897]
[1755303887522,0.2593,4452.1,4452.0,1.0931]
[1755303887827,0.2593,4452.1,4452.0,22.2761]
[1755303888125,1.0743,4452.1,4452.0,1.0931]
[1755303888432,3.2078,4453.4,4452.0,1.0931]
[1755303888433,0.2567,4452.7,4452.1,0.4956]
[1755303888724,1.6843,4452.7,4452.6,1.0678]
[1755303889322,1.6843,4452.7,4452.3,3.2078]
[1755303889529,0.1735,4452.7,4452.6,0.44884]
[1755303889726,0.4302,4452.7,4452.6,1.51664]
[1755303889927,0.6889,4452.7,4452.6,1.0678]
[1755303890627,0.3567,4453.2,4453.1,0.5722]
[1755303890832,0.1,4453.2,4453.1,22.3509]
[1755303891623,0.3567,4453.2,4453.1,22.3509]
[1755303892421,0.3567,4453.2,4453.1,22.53396581]
[1755303892628,0.1,4453.2,4453.1,22.53396581]
[1755303895435,0.5302,4453.2,4453.1,22.43286581]
[1755303897831,0.7889,4453.2,4453.1,22.42386581]
[1755303898936,0.7889,4453.2,4453.1,1.25086581]
[1755303899132,0.7889,4453.2,4453.1,22.42286581]
[1755303899639,1.7843,4453.2,4452.9,3.2078]
[1755303899839,0.7752,4453.2,4453.1,22.1388]
[1755303900131,0.7752,4453.2,4453.1,22.2398]
[1755303900430,1.7843,4453.2,4453.1,0.4106]
[1755303900635,1.7843,4453.2,4453.1,21.4203]
[1755303900832,0.6752,4453.0,4452.9,3.2078]
[1755303901037,1.6843,4453.0,4452.9,24.3778]
[1755303901435,1.6843,4453.0,4452.9,3.2078]
[1755303903442,1.6843,4452.9,4452.8,21.169]
[1755303904130,1.0091,4452.8,4452.7,21.169]
[1755303904429,1.6843,4452.8,4452.7,21.169]
[1755303904835,1.6843,4452.8,4452.4,0.44886]
[1755303905035,0.6752,4452.6,4452.5,21.168]
[1755303905235,1.6843,4452.6,4452.5,21.168]
[1755303905839,1.6843,4452.6,4452.5,21.5786]
[1755303906040,1.6843,4452.6,4452.5,22.0742]
[1755303906840,1.6843,4452.6,4452.5,22.2358]
[1755303907037,0.1,4453.2,4453.1,1.0678]
[1755303907338,0.3567,4453.2,4453.1,33.4041202]
[1755303908337,0.3567,4453.2,4453.1,33.3030202]
[1755303908537,1.7843,4453.2,4453.1,25.4416]
[1755303910440,0.3567,4453.2,4453.1,25.4416]
[1755303910942,0.5302,4453.2,4453.1,25.4416]
[1755303911540,0.1,4453.2,4453.1,33.8509202]
[1755303911743,3.2078,4455.2,4453.8,0.3956]
[1755303911937,0.6889,4454.3,4454.2,4.0156]
[1755303912131,0.6889,4454.3,4454.2,25.1776]
[1755303912639,0.9319,4454.3,4454.2,25.1776]
[1755303912938,1.3102,4454.3,4454.2,25.1776]
[1755303913130,1.6843,4454.3,4454.2,25.1776]
[1755303914437,1.0091,4455.1,4454.2,25.175]
[1755303914631,0.4322,4454.8,4454.7,4.46424]
[1755303914840,0.3741,4455.1,4454.9,0.86082]
[1755303915032,0.1735,4455.1,4455.0,21.3203]
[1755303915339,1.6843,4455.1,4454.9,21.159]
[1755303915535,1.6843,4455.0,4454.9,21.159]
[1755303915731,1.6843,4455.0,4454.9,21.4083]
[1755303915938,1.6843,4455.0,4454.9,21.9668]
[1755303916536,0.7524,4455.6,4455.3,0.44857]
[1755303916740,1.6843,4455.4,4455.3,0.8051]
[1755303916941,1.6843,4455.4,4455.3,21.9601]
[1755303918741,0.2567,4455.4,4455.3,21.9601]
[1755303918939,1.6837,4455.4,4455.3,21.9601]
[1755303920234,1.0319,4456.1,4455.4,1.50093]
[1755303920441,0.2631,4455.9,4455.8,1.24792]
[1755303920742,0.2631,4455.9,4455.8,22.49812]
[1755303920936,0.2631,4456.2,4456.1,1.2479]
[1755303921137,0.7965,4456.6,4456.5,0.44846]
[1755303921347,0.2631,4458.0,4457.7,0.44833]
[1755303921546,1.6901,4458.0,4457.9,11.3268202]
[1755303921736,1.6901,4458.0,4457.9,33.0156202]
[1755303921737,1.3075,4458.0,4457.9,33.0156202]
[1755303921941,3.2078,4459.5,4458.2,0.7994]
[1755303922141,1.6901,4459.2,4459.1,4.45009]
[1755303922344,1.6901,4459.2,4459.1,25.59609]
[1755303922546,1.6901,4459.2,4459.1,25.1479]
[1755303923549,0.19901233,4459.7,4459.6,0.44814]
[1755303923742,0.3862,4460.1,4459.9,0.3743]
[1755303923938,0.3862,4460.1,4460.0,21.5193]
[1755303924143,3.594,4460.1,4459.9,21.145]
[1755303924346,0.3862,4460.0,4459.6,21.145]
[1755303924949,0.3862,4460.0,4459.7,21.145]
[1755303925246,0.1,4460.2,4459.8,0.44813]
[1755303925452,0.1,4460.2,4459.8,0.2504]
[1755303925648,0.3862,4460.1,4459.9,0.69851]
[1755303925953,0.7688,4460.1,4460.0,21.8978]
[1755303926341,1.0319,4460.1,4460.0,21.8978]
[1755303926947,0.1,4460.2,4459.9,7.8594202]
[1755303927143,1.0319,4460.1,4460.0,21.137]
[1755303927847,0.1,4460.2,4460.1,1.4523]
[1755303929042,0.1,4460.2,4460.1,2.1413]
[1755303929440,0.1,4460.2,4460.1,5.3491]
[1755303930243,1.0612,4461.2,4461.1,0.4326]
[1755303930444,1.0612,4461.2,4461.1,21.302]
[1755303930445,0.6582,4461.2,4461.1,21.302]
[1755303930753,1.0408,4461.2,4461.1,21.302]
[1755303931050,1.6901,4461.2,4461.1,21.818]
[1755303931250,1.6901,4461.2,4461.1,0.173]
[1755303931452,0.18235389,4463.3,4461.0,21.124]
[1755303931453,1.6901,4461.1,4461.0,21.124]
[1755303931752,1.6901,4461.1,4460.7,0.00336236]
[1755303931942,0.9213,4460.9,4460.8,21.124]
[1755303932142,0.2479,4460.9,4460.8,21.124]
[1755303932354,1.6901,4460.9,4460.8,22.5668]
[1755303932855,1.6901,4460.9,4460.8,21.297]
[1755303933050,1.6901,4460.9,4460.7,0.00336236]
[1755303933256,1.6901,4460.8,4460.7,0.00336236]
[1755303933752,1.0319,4460.9,4460.8,0.44803]
[1755303933946,1.0319,4460.9,4460.7,28.9824202]
[1755303933947,3.2078,4462.1,4461.0,0.2504]
[1755303934150,0.164,4461.4,4461.3,1.6932]
[1755303934351,0.6457,4461.9,4461.5,0.44796]
[1755303934550,3.2078,4462.1,4461.6,30.4212202]
[1755303934551,1.056,4461.7,4461.6,30.4212202]
[1755303934751,1.3039,4461.7,4461.6,30.4212202]
[1755303935156,0.6734,4461.7,4461.6,31.1195702]
[1755303935356,0.4103,4462.0,4461.9,0.9394]
[1755303935560,0.4103,4462.0,4461.9,22.0574]
[1755303935858,0.4103,4462.0,4461.9,22.8112]
[1755303936361,3.2078,4462.7,4462.0,0.7538]
[1755303936652,1.0319,4462.8,4462.7,0.3795]
[1755303936852,1.0319,4462.8,4462.7,21.4965]
[1755303937051,1.0319,4462.8,4462.2,3.65568]
[1755303937253,0.3826,4462.5,4462.3,21.4965]
[1755303937450,0.6493,4462.4,4462.3,0.3795]
[1755303937762,1.0319,4462.4,4462.3,21.4965]
[1755303938360,1.0319,4462.4,4462.3,21.117]
[1755303938555,1.0319,4462.8,4462.3,21.113]
[1755303938755,32.51261866,4465.5,4462.4,7.8594202]
[1755303938756,0.2631,4463.0,4462.4,7.8594202]
[1755303938958,1.0319,4463.1,4463.0,0.7538]
[1755303939151,0.6493,4463.5,4462.7,21.112]
[1755303939464,1.0319,4463.5,4462.7,21.112]
[1755303939765,0.7688,4463.4,4462.7,21.112]
[1755303939956,0.6457,4463.1,4462.7,21.112]
[1755303940260,3.2078,4464.2,4463.0,7.8594202]
[1755303940455,3.2078,4464.2,4463.1,0.3795]
[1755303940655,1.0319,4464.1,4462.7,3.2078]
[1755303940856,3.2078,4463.6,4462.8,0.44783]
[1755303941155,0.2631,4463.3,4462.8,0.44783]
[1755303941356,3.2078,4463.6,4462.7,3.2078]
[1755303941557,0.6582,4462.8,4462.7,3.2078]
[1755303941862,1.6901,4462.8,4462.7,3.4674]
[1755303942052,1.6901,4462.8,4462.7,3.6404]
[1755303942256,0.6582,4462.4,4462.3,21.108]
[1755303942561,1.6901,4462.4,4462.3,21.108]
[1755303943158,1.6901,4462.4,4462.3,21.3676]
[1755303943354,1.6901,4462.4,4462.0,3.2078]
[1755303943553,3.2078,4463.6,4462.0,25.7556]
[1755303943554,1.6901,4462.1,4462.0,25.7556]
[1755303943758,0.6457,4462.5,4462.0,26.4539]
[1755303943954,1.6901,4462.4,4462.3,1.0685]
[1755303944154,1.0319,4463.5,4462.3,9.3022202]
[1755303944457,1.6901,4462.6,4462.5,4.6506]
[1755303944660,1.6901,4462.6,4462.5,3.2078]
[1755303944855,1.056,4462.6,4462.5,3.2078]
[1755303945064,1.6901,4462.6,4462.5,3.2078]
[1755303946460,0.2631,4462.9,4462.8,0.689]
[1755303946663,0.2631,4462.9,4462.8,9.5526202]
[1755303946967,0.9213,4462.9,4462.8,9.5526202]
[1755303947156,1.6901,4462.9,4462.5,3.2078]
[1755303947463,1.6901,4462.6,4462.5,3.6404]
[1755303947664,1.6901,4462.6,4462.5,3.2078]
[1755303947861,0.6493,4464.0,4462.6,0.44785]
[1755303948063,1.0319,4463.9,4463.0,7.8594202]
[1755303948264,0.6582,4463.1,4463.0,8.5484202]
[1755303948561,1.6631,4463.1,4463.0,9.2879202]
[1755303948761,1.6631,4463.1,4462.5,30.1477702]
[1755303948965,1.6631,4463.1,4462.7,0.44784]
[1755303949165,0.7918,4463.4,4463.3,0.423]
[1755303949467,1.2977,4463.5,4463.4,1.4091]
[1755303949666,1.2977,4463.5,4463.4,0.2628]
[1755303949856,1.6699,4463.5,4463.4,0.2628]
[1755303950263,1.36942778,4463.5,4463.1,0.3673]
[1755303950464,0.4185,4462.7,4462.6,1.1625]
[1755303950671,0.665,4462.7,4462.6,0.423]
[1755303950963,0.4185,4462.5,4462.2,21.8385]
[1755303951168,1.6699,4462.5,4462.2,22.28639]
[1755303951369,1.6699,4462.5,4462.4,4.6169]
[1755303952168,0.14561343,4462.5,4462.4,1.4091]
[1755303952361,0.14561343,4462.5,4462.4,1.658]
[1755303952562,0.6661,4463.3,4463.2,1.658]
[1755303952764,1.37213527,4463.3,4463.2,1.658]
[1755303953265,2.00380394,4463.3,4463.2,1.658]
[1755303953472,2.37600394,4463.3,4463.2,1.658]
[1755303953668,2.00380394,4463.3,4463.2,1.658]
[1755303953870,1.12220394,4463.3,4463.2,1.658]
[1755303954074,0.70610394,4463.3,4463.2,1.658]
[1755303955974,0.70610394,4463.3,4463.2,2.10579]
[1755303956180,0.70610394,4463.3,4463.2,1.658]
[1755303956474,0.70610394,4463.3,4462.9,24.3058]
[1755303956475,1.6699,4463.0,4462.9,3.6308]
[1755303956678,1.0049,4462.9,4462.4,3.2078]
[1755303956978,1.6699,4462.5,4462.4,3.2078]
[1755303957181,2.37600394,4462.5,4462.4,3.2078]
[1755303957377,0.3827,4463.9,4462.6,1.11962]
[1755303957684,0.915,4463.3,4463.2,8.8963202]
[1755303957980,1.2977,4463.3,4463.2,9.2685202]
[1755303958175,1.2977,4463.3,4463.2,30.3635202]
[1755303958371,1.2977,4463.3,4463.2,30.8113102]
[1755303958578,3.2078,4464.0,4463.4,0.44777]
[1755303958783,1.0488,4463.6,4463.5,1.4091]
[1755303958976,0.6661,4463.6,4463.5,1.658]
[1755303959292,3.2078,4464.0,4463.9,1.4091]
[1755303959293,4.2555,4464.0,4463.9,1.4091]
[1755303959492,4.6277,4464.0,4463.9,0.7903]
[1755303959776,4.6277,4464.0,4463.9,0.423]
[1755303959777,4.8777,4464.0,4463.9,0.423]
[1755303960181,4.8777,4464.0,4463.1,0.2489]
[1755303960378,1.98803744,4465.8,4462.5,0.85465]
[1755303960379,0.665,4462.6,4462.5,0.85465]
[1755303960675,0.6661,4462.6,4462.5,2.10585]
[1755303960878,3.2078,4463.5,4462.5,2.10585]
[1755303960879,1.0372,4463.5,4463.4,0.6696]
[1755303961080,1.6699,4463.5,4463.4,1.4091]
[1755303961381,1.2977,4463.5,4463.4,1.658]
[1755303961578,0.2465,4463.8,4463.7,1.0369]
[1755303961773,0.25,4464.2,4463.7,1.85684]
[1755303962085,1.6699,4463.9,4463.8,1.1625]
[1755303962376,0.665,4463.9,4463.6,3.2078]
[1755303962583,0.665,4463.2,4463.1,3.2078]
[1755303963078,1.6699,4463.2,4463.1,3.2078]
[1755303964783,1.6699,4463.2,4462.8,0.3673]
[1755303965087,1.6699,4462.8,4462.7,21.092]
[1755303965681,1.6699,4462.8,4462.7,21.3548]
[1755303965882,1.6699,4462.8,4462.7,0.2628]
[1755303966381,1.0049,4463.3,4462.7,0.7952]
[1755303966586,1.0049,4463.3,4462.8,0.3673]
[1755303966786,1.0049,4463.3,4462.6,21.3389]
[1755303966787,0.665,4463.3,4463.2,0.423]
[1755303966982,0.665,4463.3,4463.2,0.2628]
[1755303967184,0.63163043,4463.2,4462.9,0.7395]
[1755303967387,1.6699,4463.0,4462.9,0.3673]
[1755303967590,1.6699,4463.0,4462.9,0.6301]
[1755303967792,1.6699,4463.0,4462.9,0.7903]
[1755303967987,0.00943043,4463.2,4463.1,1.7336]
[1755303968187,0.00943043,4463.2,4463.1,23.1948]
[1755303968387,0.00943043,4463.2,4463.1,22.747]
[1755303968790,0.67553043,4463.2,4463.1,22.747]
[1755303968991,1.67933043,4463.2,4463.1,1.658]
[1755303969191,1.6699,4463.1,4463.0,21.089]
[1755303969490,2.34572626,4463.1,4463.0,21.089]
[1755303969685,2.34572626,4463.1,4463.0,21.3518]
[1755303969889,2.34572626,4463.1,4463.0,21.8793]
[1755303970384,1.81043395,4463.1,4463.0,0.423]
[1755303971086,0.80663395,4463.1,4463.0,1.658]
[1755303971990,0.14053395,4463.1,4463.0,1.658]
[1755303972192,0.80663395,4463.1,4463.0,1.658]
[1755303972389,1.43823395,4463.1,4463.0,1.658]
[1755303972592,1.81043646,4463.1,4463.0,1.4091]
[1755303973291,1.81044907,4463.1,4463.0,1.4091]
[1755303973892,1.81044907,4463.1,4463.0,1.658]
[1755303974192,1.81044907,4463.1,4463.0,1.4091]
[1755303975092,1.81044907,4463.1,4462.9,3.2078]
[1755303975284,1.81044907,4463.0,4462.9,3.2078]
[1755303975789,1.81044907,4463.0,4462.4,3.2078]
[1755303976093,1.81044907,4463.0,4461.9,0.2489]
[1755303976094,0.665,4462.0,4461.9,3.8774]
[1755303976297,1.05554907,4462.0,4461.9,4.8658]
[1755303976889,1.81044907,4462.0,4461.9,4.8658]
[1755303977288,1.81044907,4462.0,4461.9,3.4706]
[1755303977887,1.81044907,4462.0,4461.9,3.9981]
[1755303978087,1.81044907,4462.0,4461.9,4.6169]
[1755303978693,1.81044907,4462.0,4461.9,3.6308]
[1755303978889,4.81044907,4462.0,4461.3,3.2078]
[1755303979092,1.6565,4461.7,4461.6,0.7936]
[1755303979395,1.79704907,4461.7,4461.6,1.4319]
[1755303979595,1.79704907,4461.7,4461.6,0.4068]
[1755303979784,1.79704907,4461.7,4461.6,1.4319]
[1755303981190,1.6565,4461.7,4461.6,1.4319]
[1755303981498,0.6067,4462.2,4461.6,8.7813202]
[1755303981693,0.6387,4462.1,4462.0,1.6903]
[1755303982291,1.2639,4462.1,4462.0,1.6903]
[1755303982489,1.6565,4462.1,4462.0,1.6903]
[1755303982794,1.6565,4462.1,4462.0,1.4319]
[1755303983493,1.6565,4462.1,4462.0,1.0503]
[1755303983894,1.6565,4462.1,4462.0,1.4319]
[1755303984394,3.2078,4462.8,4462.2,0.6635]
[1755303984586,0.37880961,4462.7,4462.6,0.6635]
[1755303984895,0.37880961,4462.7,4462.6,1.6903]
[1755303985197,0.79820961,4462.7,4462.6,1.6903]
[1755303985391,0.66663043,4463.2,4463.1,0.6635]
[1755303985591,1.80620901,4463.2,4463.1,1.4319]
[1755303986590,1.80620901,4463.2,4463.1,1.0503]
[1755303986795,1.66593043,4463.2,4463.1,1.0503]
[1755303987096,1.8062101,4463.2,4463.1,1.0503]
[1755303987291,1.8062101,4463.2,4463.1,0.2396]
[1755303987496,0.7928,4463.1,4463.0,0.9356]
[1755303987697,1.0498,4463.1,4463.0,1.1752]
[1755303988097,1.6565,4463.1,4463.0,1.1752]
[1755303988989,0.6572,4462.2,4461.9,0.3816]
[1755303989188,0.8957,4461.8,4461.7,3.2078]
[1755303989392,1.6565,4461.8,4461.7,5.08764]
[1755303989689,0.6067,4462.1,4461.8,0.6452]
[1755303989998,1.2639,4462.1,4462.0,1.4319]
[1755303990193,3.2078,4463.1,4462.0,1.6903]
[1755303990400,0.4194,4462.2,4462.1,1.4319]
[1755303990598,0.6579,4462.2,4462.1,1.6903]
[1755303990788,0.7608,4462.5,4462.1,1.6903]
[1755303990992,0.4009,4462.4,4462.3,1.6903]
[1755303991191,0.2385,4462.4,4462.3,1.6903]
[1755303991398,0.6579,4463.0,4462.9,1.4319]
[1755303991700,0.00943043,4463.2,4463.1,1.6903]
[1755303991994,0.66733043,4463.2,4463.1,1.6903]
[1755303992300,1.8062714,4463.2,4463.1,1.6903]
[1755303992490,0.6572,4462.8,4462.7,3.2078]
[1755303992689,1.6565,4462.4,4462.3,1.4319]
[1755303992893,1.6565,4462.4,4462.3,0.4068]
[1755303993094,3.2078,4463.1,4462.3,1.6903]
[1755303993295,1.6565,4463.5,4463.4,1.4319]
[1755303993598,1.6565,4463.5,4463.4,1.0503]
[1755303993800,1.6565,4463.5,4463.4,0.2396]
[1755303993994,0.6572,4463.2,4463.1,0.7936]
[1755303994200,1.6565,4463.2,4463.1,1.1752]
[1755303994401,1.6565,4463.2,4463.1,1.4319]
[1755303994801,1.6565,4463.2,4463.1,1.0503]
[1755303995202,1.6565,4463.2,4463.1,1.4319]
[1755303996196,1.6565,4463.2,4463.1,1.6903]
[1755303996498,1.6565,4463.2,4463.1,1.4319]
[1755303996694,1.6565,4463.2,4463.1,1.0503]
[1755303996896,0.3926,4463.5,4463.1,1.0503]
[1755303997203,1.6565,4463.3,4463.2,0.7936]
[1755303997605,0.6572,4462.9,4462.8,0.3868]
[1755303997799,1.6565,4462.9,4462.7,3.2078]
[1755303998000,1.6565,4462.4,4462.1,0.7684]
[1755303998201,1.6565,4462.2,4461.9,0.44791]
[1755303998404,1.6565,4461.9,4461.8,1.87983]
[1755303998796,1.6565,4461.9,4461.8,1.4319]
[1755303999000,1.6565,4461.9,4461.8,0.2396]
[1755303999200,0.6311,4463.0,4461.8,0.7936]
[1755303999401,0.2385,4462.7,4461.9,0.7684]
[1755303999602,0.9993,4462.5,4461.9,0.7684]
[1755303999903,0.14140229,4462.4,4461.8,0.7684]
[1755304000106,3.9686,4463.1,4461.8,0.7684]
[1755304000107,0.9993,4462.9,4461.8,0.7684]
[1755304000307,0.9993,4462.7,4461.8,0.7684]
[1755304000506,0.14140096,4462.6,4461.8,0.7684]
[1755304000910,0.14140096,4462.5,4461.8,0.7684]
[1755304001108,0.14140096,4462.4,4461.8,1.21633]
[1755304001403,1.2639,4462.4,4461.9,0.7684]
[1755304001709,1.6565,4462.3,4462.2,0.7936]
[1755304002701,1.6565,4462.3,4462.2,0.4068]
[1755304002905,1.6565,4462.3,4462.2,0.2396]
[1755304003608,3.4463,4463.1,4462.2,1.11973]
[1755304003798,0.8957,4463.1,4463.0,1.6903]
[1755304004003,0.2385,4463.3,4463.0,1.6903]
[1755304004209,0.54228122,4463.2,4463.1,1.6903]
[1755304004604,1.2639,4463.2,4463.1,1.4319]
[1755304004804,0.79928064,4463.2,4463.1,1.6903]
[1755304005111,1.2639,4463.4,4463.3,0.6635]
[1755304005306,1.79787647,4463.4,4463.3,1.4319]
[1755304005500,1.79787647,4463.4,4463.3,0.7936]
[1755304005708,1.6565,4462.8,4462.7,3.2078]
[1755304006001,0.6579,4462.2,4462.1,4.706]
[1755304006204,0.3682,4462.8,4462.1,3.6146]
[1755304006405,0.14140992,4462.7,4462.6,0.4068]
[1755304006607,1.55940992,4462.7,4462.6,1.4319]
[1755304006909,1.55940684,4462.7,4462.6,1.4319]
[1755304007114,1.79790684,4462.7,4462.6,1.4319]
[1755304007508,1.79790684,4462.7,4462.6,0.7936]
[1755304008207,1.79790684,4462.7,4462.6,0.2396]
[1755304009809,1.6925,4462.3,4462.2,0.7968]
[1755304010210,1.6925,4462.3,4462.2,0.2345]
[1755304010410,1.6925,4462.3,4462.1,3.2078]
[1755304010411,0.6705,4462.3,4462.1,3.2078]
[1755304010612,1.8339949,4462.2,4462.1,3.2078]
[1755304013115,0.8119949,4462.2,4461.5,0.44796]
[1755304013314,1.6925,4461.5,4461.4,0.62346]
[1755304013512,1.267,4461.4,4461.3,3.2078]
[1755304013814,1.0479,4461.8,4461.7,1.667]
[1755304014010,1.44825989,4461.8,4461.7,1.667]
[1755304014315,1.83405989,4461.8,4461.7,1.667]
[1755304014812,0.2571,4463.1,4461.7,4.1886]
[1755304015012,1.6925,4463.1,4463.0,0.7979]
[1755304015910,1.3067,4463.1,4463.0,0.7979]
[1755304016109,1.6925,4463.1,4463.0,0.7979]
[1755304016317,1.6925,4463.1,4463.0,1.1778]
[1755304017418,1.6925,4463.1,4463.0,0.7979]
[1755304017617,1.6925,4463.1,4463.0,0.41]
[1755304019517,3.0,4463.1,4462.2,0.44788]
[1755304019724,1.6925,4462.3,4462.2,1.86958]
[1755304020019,3.2078,4463.4,4462.2,1.86958]
[1755304020020,1.3134,4463.2,4463.1,0.2345]
[1755304020214,1.6925,4463.2,4463.1,0.41]
[1755304020414,1.6925,4463.2,4462.6,0.2453]
[1755304020617,1.022,4463.1,4462.3,1.21567]
[1755304020818,0.4255,4462.4,4462.3,2.11487]
[1755304021013,0.4255,4462.6,4462.5,0.62336]
[1755304021324,0.6826,4462.6,4462.5,1.667]
[1755304022018,1.3134,4462.6,4462.5,1.667]
[1755304022219,1.6925,4462.6,4462.5,1.667]
[1755304022921,1.6925,4462.6,4462.5,1.4217]
[1755304024119,0.4117,4462.3,4462.2,4.0057]
[1755304024312,1.3067,4462.3,4462.2,4.2496]
[1755304024515,1.6925,4462.3,4462.2,4.6295]
[1755304024710,1.6925,4462.3,4462.2,0.41]
[1755304024918,1.4337,4461.9,4461.8,1.1778]
[1755304025117,1.6925,4461.9,4461.7,3.2078]
[1755304025419,1.6925,4461.8,4461.7,3.2078]
[1755304026113,0.6705,4461.3,4461.2,1.0418]
[1755304026313,1.6925,4461.3,4461.2,1.4217]
[1755304027320,1.6925,4461.3,4461.2,0.6539]
[1755304027529,1.6925,4461.3,4461.2,1.667]
[1755304028217,0.9276,4461.3,4461.2,1.667]
[1755304030222,0.3791,4461.6,4461.2,1.667]
[1755304030426,0.9276,4461.7,4461.6,0.6539]
[1755304030622,1.06824263,4461.7,4461.6,1.667]
[1755304031029,1.83314263,4461.7,4461.6,1.667]
[1755304031223,1.83314263,4461.7,4461.6,1.4217]
[1755304032123,1.6925,4461.7,4461.6,1.4217]
[1755304035730,1.8331279,4461.7,4461.6,1.4217]
[1755304036126,1.8331279,4461.7,4461.0,5.20018147]
[1755304036326,0.6362,4460.9,4460.3,0.3799]
[1755304036627,1.6925,4460.1,4460.0,3.2078]
[1755304036825,1.6925,4460.1,4460.0,3.4423]
[1755304037726,1.6925,4460.1,4460.0,3.2078]
[1755304038330,0.6705,4460.1,4459.4,3.5957]
[1755304038530,1.6553,4459.5,4459.4,4.6326]
[1755304039433,1.6553,4459.5,4459.4,4.8846]
[1755304039730,1.6553,4459.5,4459.4,4.6218]
[1755304039932,1.6553,4459.5,4459.4,3.9986]
[1755304040128,1.6553,4459.5,4459.4,4.2447]
[1755304040329,1.6553,4459.5,4459.4,4.6218]
[1755304041128,1.6553,4459.5,4459.4,0.2461]
[1755304041431,0.2391,4459.2,4459.1,0.10091609]
[1755304041628,1.6553,4459.2,4459.1,0.10091609]
[1755304046935,0.6452,4458.1,4458.0,1.0369]
[1755304047134,0.6452,4458.1,4458.0,0.6654]
[1755304047135,1.6553,4458.1,4458.0,0.6654]
[1755304047427,1.6553,4457.7,4457.6,0.34746076]
[1755304047626,1.6553,4457.7,4457.6,1.59426076]
[1755304048030,0.3955,4457.4,4457.3,3.79693996]